Workbook

Sheet 目录
A2: 目 录
A4: 第一部分 一般公共预算
A6: 1、2019年通川区一般公共预算收入预算表……………………（2）
A7: 2、2019年通川区一般公共预算支出预算表……………………（3）
A8: 3、2019年通川区一般公共预算功能分类支出预算表…………（4）
A9: 4、2019年通川区一般公共预算经济分类科目支出预算………（5）
A10: 5、2019年通川区一般公共预算收支平衡表…………………… (6）
A11: 6、2019年达州市对通川区税收返还和转移转付补助预算表…（7）
A12: 7、2019年通川区地方政府债务还款计划表……………………（8）
A15: 第二部分 政府性基金预算
A17: 8、2019年通川区政府性基金收入预算表………………………（10）
A18: 9、2019年通川区政府性基金支出预算表………………………（11）
A19: 10、2019年通川区政府性基金预算收支预算平衡表………… （12）
A20: 11、2019年通川区政府性基金转移支付补助预算表………… （13）
A22: 第三部分 国有资本经营预算
A24: 12、2019年通川区国有资本经营收入预算表…………………（15）
A25: 13、2019年通川区国有资本经营支出预算表…………………（16）
A26: 14、2019年通川区国有资本经营预算收支预算平衡表………（17）
A28: 第四部分 社会保险基金预算
A30: 15、2019年通川区社会保险基金收入预算表…………………（19）
A31: 16、2019年通川区社会保险基金支出预算表…………………（20）
A32: 17、2019年通川区社会保险基金结余预算表…………………（21）

Sheet 第一部分1
A11: 第 一 部 分
A14: 一 般 公 共 预 算

Sheet 2019年通川区收入（表2）
A2: 2019年通川区一般公共预算收入预算表
D3: 单位：万元
A4: 项目 | B4: 上年完成数 | C4: 预算数 | D4: 增长% | E4: 备注
A5: 税收收入小计 | B5: =SUM(B6:B21) -> 55,002 | C5: =SUM(C6:C21) -> 64,919 | D5: =(C5-B5)/B5*100 -> 18.03
A6: 一、增值税 | B6: 22,099 | C6: 27,348 | D6: 23.75
A7: 二、营业税 | B7: 375 | D7: -100.00
A8: 三、企业所得税 | B8: 5,063 | C8: 5,700 | D8: 12.58
A9: 四、企业所得税退税
A10: 五、个人所得税 | B10: 2,142 | C10: 2,550 | D10: 19.05
A11: 六、资源税 | B11: 531 | C11: 562 | D11: 5.84
A12: 七、城市维护建设税
A13: 八、房产税 | B13: 1,370 | C13: 1,450 | D13: 5.84
A14: 九、 印花税 | B14: 1,310 | C14: 1,400 | D14: 6.87
A15: 十、城镇土地使用税 | B15: 1,132 | C15: 1,350 | D15: 19.26
A16: 十一、土地增值税 | B16: 7,058 | C16: 8,030 | D16: 13.77
A17: 十二、车船税 | B17: 564 | C17: 600 | D17: 6.38
A18: 十三、耕地占用税 | B18: 3,213 | C18: 4,169 | D18: 29.75
A19: 十四、契税 | B19: 9,911 | C19: 11,500 | D19: 16.03
A20: 十五、 环境保护税 | B20: 234 | C20: 260 | D20: 11.11 | E20: 非税收入排污费调整为税收收入
A21: 十六、其他税收收入
A22: 非税收入 | B22: =SUM(B23:B30) -> 31,041 | C22: =SUM(C23:C30) -> 28,007 | D22: -9.77
A23: 十七、专项收入 | B23: 3,879 | C23: 4,300 | D23: 10.85
A24: 十八、行政事业性收费收入 | B24: 1,634 | C24: 1,700 | D24: 4.04
A25: 十九、罚没收入 | B25: 1,868 | C25: 1,900 | D25: =(C25-B25)/B25*100 -> 1.71
A26: 二十、国有资本经营收入
A27: 二十一、国有资源（资产）有偿使用收入 | B27: 20,151 | C27: 16,232 | D27: -19.45
A28: 二十二、捐赠收入 | B28: 3,266 | C28: 3,000 | D28: -8.14
A29: 二十三、政府住房基金收入 | B29: 243 | C29: 875 | D29: 260.08
A30: 二十四、其他收入
A31: 一般公共预算收入合计 | B31: =B22+B5 -> 86,043 | C31: =C22+C5 -> 92,926 | D31: 8.00

Sheet 2019年通川区支出（表3）
C2: 2019年通川区一般公共预算支出预算表
H3: 单位：万元
B4: 预 算 科 目 | C4: 预 算 科 目 | E4: 2018年预算数 | F4: 预算数 | H4: 同口径增长%
F5: 小计 | G5: 其中：提前通知补助
A6: 201 | B6: 一、一般公共服务支出 | C6: 一、一般公共服务支出 | D6: 一、一般公共服务支出 | E6: 23,989 | F6: 27,660 | H6: 5.30 | I6: =(F6-E6)/E6*100 -> 15.30284714
A7: 202 | B7: 二、外交支出 | C7: 二、外交支出 | D7: 二、外交支出 | I7: =(F7-E7)/E7*100 -> 
A8: 203 | B8: 三、国防支出 | C8: 三、国防支出 | D8: 三、国防支出 | E8: 430 | I8: -100
A9: 204 | B9: 四、公共安全支出 | C9: 四、公共安全支出 | D9: 四、公共安全支出 | E9: 15,060 | F9: 15,463 | H9: =(F9-E9)/E9*100 -> 2.68 | I9: 2.675962815
A10: 205 | B10: 五、教育支出 | C10: 五、教育支出 | D10: 五、教育支出 | E10: 35,150 | F10: 37,170 | H10: 5.75 | I10: 5.746799431
A11: 206 | B11: 六、科学技术支出 | C11: 六、科学技术支出 | D11: 六、科学技术支出 | E11: 620 | F11: 630 | H11: 1.61 | I11: 1.612903226
A12: 207 | B12: 七、文化旅游体育与传媒支出 | C12: 七、文化旅游体育与传媒支出 | D12: 七、文化体育与传媒支出 | E12: 1,515 | F12: 1,672 | H12: 10.36 | I12: 10.3630363
A13: 208 | B13: 八、社会保障和就业支出 | C13: 八、社会保障和就业支出 | D13: 八、社会保障和就业支出 | E13: 23,252 | F13: 37,801 | G13: =6339+5300 -> 11,639 | H13: 18.17 | I13: 62.57096164 | J13: 专项
A14: 210 | B14: 九、卫生健康支出 | C14: 九、卫生健康支出 | D14: 九、医疗卫生与计划生育支出 | E14: 12,650 | F14: 9,700 | G14: 443 | H14: 16.48 | I14: -23.3201581 | J14: 专项 | M14: 208 | N14: 6982
A15: 211 | B15: 十、节能环保支出 | C15: 十、节能环保支出 | D15: 十、节能环保支出 | E15: 3,980 | F15: 4,200 | H15: 5.53 | I15: 5.527638191 | M15: 210 | N15: 4703
A16: 212 | B16: 十一、城乡社区支出 | C16: 十一、城乡社区支出 | D16: 十一、城乡社区支出 | E16: 2,550 | F16: 2,830 | H16: 10.98 | I16: 10.98039216 | M16: 221 | N16: 1994
A17: 213 | B17: 十二、农林水支出 | C17: 十二、农林水支出 | D17: 十二、农林水支出 | E17: 13,089 | F17: 18,620 | G17: =877+950+2243+68 -> 4,138 | H17: 10.65 | I17: 42.2568569 | J17: 一般 | N17: =SUM(N14:N16) -> 13679
A18: 214 | B18: 十三、交通运输支出 | C18: 十三、交通运输支出 | D18: 十三、交通运输支出 | E18: 3,100 | F18: 3,200 | H18: 3.23 | I18: 3.225806452
A19: 215 | B19: 十四、资源勘探信息等支出 | C19: 十四、资源勘探信息等支出 | D19: 十四、资源勘探信息等支出 | E19: 1,500 | F19: 1,528 | H19: 1.87 | I19: 1.866666667
A20: 216 | B20: 十五、商业服务业等支出 | C20: 十五、商业服务业等支出 | D20: 十五、商业服务业等支出 | E20: 900 | F20: 900 | H20: 0.00 | I20: 0
A21: 217 | B21: 十六、金融支出 | C21: 十六、金融支出 | D21: 十六、金融支出 | F21: 14
A22: 219 | B22: 十七、援助其他地区支出 | C22: 十七、援助其他地区支出 | D22: 十七、援助其他地区支出
A23: 220 | B23: 十八、自然资源海洋气象等支出 | C23: 十八、自然资源海洋气象等支出 | D23: 十八、国土海洋气象等支出 | E23: 100 | F23: 100 | I23: 0
A24: 221 | B24: 十九、住房保障支出 | C24: 十九、住房保障支出 | D24: 十九、住房保障支出 | E24: 7,500 | F24: 18,580 | G24: =6225+4656 -> 10,881 | H24: 2.65 | I24: 147.7333333 | J24: 专项
A25: 222 | B25: 二十、粮油物资储备支出 | C25: 二十、粮油物资储备支出 | D25: 二十、粮油物资储备支出 | E25: 230 | F25: 520 | G25: 270 | H25: 8.70 | I25: 126.0869565
A26: 224 | B26: 二十一、灾害防治及应急管理支出 | C26: 二十一、灾害防治及应急管理支出
A27: 227 | B27: 二十二、预备费 | C27: 二十二、预备费 | D27: 二十一、预备费 | E27: 5,000 | F27: 5,700 | H27: 14.00 | I27: 14
A28: 229 | B28: 二十三、其他支出 | C28: 二十三、债务付息支出 | D28: 二十三、债务付息支出 | E28: 7,522 | F28: 10,609 | H28: 41.04 | I28: 41.03961712
A29: 232 | B29: 二十四、债务付息支出 | C29: 二十四、债务发行费用支出 | D29: 二十四、债务发行费用支出 | E29: 65 | F29: 100 | H29: 53.85 | I29: 53.84615385
A30: 233 | B30: 二十五、债务发行费用支出 | C30: 二十五、其他支出 | D30: 二十四、其他支出 | R30: 2018预算数 | S30: 2018预通知 | T30: 2018实际预算数 | U30: 2019年实际数 | V30: 同口径增长
C31: 支出合计 | E31: =SUM(E6:E30) -> 158,202 | F31: =SUM(F6:F30) -> 196,997 | G31: =SUM(G6:G30) -> 27,371 | H31: 15.76 | I31: 24.52244599 | R31: 158202 | S31: 11685 | T31: =R31-S31 -> 146517 | U31: =F31-G31 -> 169,626 | V31: =(U31-T31)/T31*100 -> 15.77223121

Sheet 2019年通川区一般公共预算功能分类科目表（表4）
A1: 2019年一般公共预算基本支出表
C2: 单位：万元
A3: 项目 | B3: 预算数 | C3: 备注
A4: 一、一般公共服务支出 | B4: 28,647.00
A5: 人大事务 | B5: 657.00
A6: 行政运行 | B6: 302
A7: 一般行政管理事务 | B7: 84
A8: 机关服务 | B8: 55
A9: 人大会议
A10: 人大立法
A11: 人大监督 | B11: 93
A12: 人大代表履职能力提升
A13: 代表工作 | B13: 23
A14: 人大信访工作
A15: 事业运行
A16: 其他人大事务支出 | B16: 100
A17: 政协事务 | B17: 565.00
A18: 行政运行 | B18: 322
A19: 一般行政管理事务 | B19: 40
A20: 机关服务
A21: 政协会议 | B21: 45
A22: 委员视察 | B22: 14
A23: 参政议政 | B23: 34
A24: 事业运行
A25: 其他政协事务支出 | B25: 110
A26: 政府办公厅（室）及相关机构事务 | B26: 13,903.00
A27: 行政运行 | B27: 8300
A28: 一般行政管理事务 | B28: 1460
A29: 机关服务 | B29: 942
A30: 专项服务
A31: 专项业务活动
A32: 政务公开审批 | B32: 1174
A33: 信访事务 | B33: 143
A34: 参事事务
A35: 事业运行 | B35: 232
A36: 其他政府办公厅（室）及相关机构事务支出 | B36: 1652
A37: 发展与改革事务 | B37: 618.00
A38: 行政运行 | B38: 459
A39: 一般行政管理事务 | B39: 4
A40: 机关服务
A41: 战略规划与实施
A42: 日常经济运行调节
A43: 社会事业发展规划
A44: 经济体制改革研究
A45: 物价管理
A46: 应对气候变化管理事务
A47: 事业运行
A48: 其他发展与改革事务支出 | B48: 155
A49: 统计信息事务 | B49: 489.00
A50: 行政运行 | B50: 296
A51: 一般行政管理事务 | B51: 38
A52: 机关服务
A53: 信息事务
A54: 专项统计业务 | B54: 1
A55: 统计管理
A56: 专项普查活动 | B56: 100
A57: 统计抽样调查
A58: 事业运行 | B58: 4
A59: 其他统计信息事务支出 | B59: 50
A60: 财政事务 | B60: 2,084.00
A61: 行政运行 | B61: 1298
A62: 一般行政管理事务 | B62: 203
A63: 机关服务
A64: 预算改革业务
A65: 财政国库业务
A66: 财政监察
A67: 信息化建设 | B67: 102
A68: 财政委托业务支出 | B68: 19
A69: 事业运行 | B69: 369
A70: 其他财政事务支出 | B70: 93
A71: 税收事务 | B71: 320.00
A72: 行政运行
A73: 一般行政管理事务
A74: 机关服务
A75: 税务办案
A76: 税务登记证及发票管理
A77: 代扣代收代征税款手续费
A78: 税务宣传
A79: 协税护税
A80: 信息化建设
A81: 事业运行
A82: 其他税收事务支出 | B82: 320
A83: 审计事务 | B83: 555.00
A84: 行政运行 | B84: 270
A85: 一般行政管理事务
A86: 机关服务
A87: 审计业务 | B87: 260
A88: 审计管理
A89: 信息化建设
A90: 事业运行 | B90: 11
A91: 其他审计事务支出 | B91: 14
A92: 海关事务 | B92: 0.00
A93: 行政运行
A94: 一般行政管理事务
A95: 机关服务
A96: 缉私办案
A97: 口岸管理
A98: 信息化建设
A99: 海关关务
A100: 关税征管
A101: 海关监管
A102: 检验检疫
A103: 事业运行
A104: 其他海关事务支出
A105: 人力资源事务 | B105: 401.00
A106: 行政运行 | B106: 400
A107: 一般行政管理事务
A108: 机关服务
A109: 政府特殊津贴
A110: 资助留学回国人员
A111: 博士后日常经费
A112: 引进人才费用 | B112: 1
A113: 事业运行
A114: 其他人力资源事务支出
A115: 纪检监察事务 | B115: 1,598.00
A116: 行政运行 | B116: 376
A117: 一般行政管理事务 | B117: 236
A118: 机关服务 | B118: 3
A119: 大案要案查处
A120: 派驻派出机构 | B120: 44
A121: 中央巡视
A122: 事业运行
A123: 其他纪检监察事务支出 | B123: 939
A124: 商贸事务 | B124: 603.00
A125: 行政运行 | B125: 302
A126: 一般行政管理事务 | B126: 1
A127: 机关服务
A128: 对外贸易管理
A129: 国际经济合作
A130: 外资管理
A131: 国内贸易管理
A132: 招商引资 | B132: 300
A133: 事业运行
A134: 其他商贸事务支出
A135: 知识产权事务 | B135: 0.00
A136: 行政运行
A137: 一般行政管理事务
A138: 机关服务
A139: 专利审批
A140: 国家知识产权战略
A141: 专利试点和产业化推进
A142: 专利执法
A143: 国际组织专项活动
A144: 知识产权宏观管理
A145: 商标管理
A146: 原产地地理标志管理
A147: 事业运行
A148: 其他知识产权事务支出
A149: 民族事务 | B149: 33.00
A150: 行政运行 | B150: 17
A151: 一般行政管理事务
A152: 机关服务
A153: 民族工作专项
A154: 事业运行
A155: 其他民族事务支出 | B155: 16
A156: 港澳台事务 | B156: 73.00
A157: 行政运行 | B157: 41
A158: 一般行政管理事务
A159: 机关服务
A160: 港澳事务
A161: 台湾事务
A162: 事业运行
A163: 其他港澳台事务支出 | B163: 32
A164: 档案事务 | B164: 115.00
A165: 行政运行 | B165: 107
A166: 一般行政管理事务
A167: 机关服务
A168: 档案馆 | B168: 8
A169: 其他档案事务支出
A170: 民主党派及工商联事务 | B170: 82.00
A171: 行政运行 | B171: 82
A172: 一般行政管理事务
A173: 机关服务
A174: 参政议政
A175: 事业运行
A176: 其他民主党派及工商联事务支出
A177: 群众团体事务 | B177: 539.00
A178: 行政运行 | B178: 365
A179: 一般行政管理事务 | B179: 103
A180: 机关服务
A181: 工会事务
A182: 事业运行
A183: 其他群众团体事务支出 | B183: 71
A184: 党委办公厅（室）及相关机构事务 | B184: 1,925.00
A185: 行政运行 | B185: 890
A186: 一般行政管理事务 | B186: 583
A187: 机关服务
A188: 专项业务
A189: 事业运行
A190: 其他党委办公厅（室）及相关机构事务支出 | B190: 452
A191: 组织事务 | B191: 303.00
A192: 行政运行 | B192: 218
A193: 一般行政管理事务 | B193: 54
A194: 机关服务
A195: 公务员事务
A196: 事业运行
A197: 其他组织事务支出 | B197: 31
A198: 宣传事务 | B198: 227.00
A199: 行政运行 | B199: 188
A200: 一般行政管理事务 | B200: 39
... 1197 more rows

Sheet 2019年一般公共预算经济分类科目表(5)
A1: 2019年达州市通川区一般公共预算经济分类科目支出预算表
A2: 单位：万元
A3: 预 算 科 目 | B3: 预算数
A4: 合计 | B4: =B5+B10+B20+B25+B29+B31+B33+B37+B40 -> 196,997
A5: 一、机关工资福利支出 | B5: =SUM(B6:B9) -> 56,831
A6: 其中：工资奖金津补贴 | B6: 30,204
A7: 社会保障缴费 | B7: 8,694
A8: 住房公积金 | B8: 4,822
A9: 其他工资福利支出 | B9: 13,111
A10: 二、机关商品和服务支出 | B10: =SUM(B11:B19) -> 22,768
A11: 其中：办公经费 | B11: 13,079
A12: 会议费 | B12: 1,540
A13: 培训费 | B13: 520
A14: 专用材料购置费 | B14: 190
A15: 委托业务费 | B15: 976
A16: 公务接待费 | B16: 121
A17: 公务用车运行维护费 | B17: 634
A18: 维修（护）费 | B18: 2,100
A19: 其他商品和服务支出 | B19: 3,608
A20: 三、机关资本性支出（一） | B20: =SUM(B21:B24) -> 15,514
A21: 基础设施建设 | B21: 5,630
A22: 设备购置 | B22: 3,560
A23: 大型修缮 | B23: 165
A24: 其他资本性支出 | B24: 6,159
A25: 四、对事业单位经常性补助 | B25: =SUM(B26:B28) -> 56,013
A26: 其中：工资福利支出 | B26: 45,361
A27: 商品和服务支出 | B27: 9,758
A28: 其他对事业单位的补助 | B28: 894
A29: 五、对事业单位资本性补助 | B29: 4,431
A30: 其中：资本性支出（一） | B30: 4,431
A31: 六、对企业补助 | B31: 602
A32: 其他对企业补助 | B32: 602
A33: 七、对个人和家庭的补助 | B33: =SUM(B34:B36) -> 25,041
A34: 其中：社会福利和救助 | B34: 17,846
A35: 离退休费 | B35: 1,520
A36: 其他对个人和家庭补助 | B36: 5,675
A37: 八、债务还本付息及发行费用支出 | B37: =SUM(B38:B39) -> 10,709
A38: 其中：国内债务付息 | B38: 10,609
A39: 发行费用支出 | B39: 100
A40: 九、其他支出 | B40: =B41 -> 5,088
A41: 其中：其他支出 | B41: 5,088
A42: 说明：除表中编列的区级行政机关“三公”经费外，区级事业单位“三公”经费在“对事业单位经常
A43: 性补助”科目中编列，加上区级事业单位“三公”经费，2019年区本级“三公”经费预算总额为789
A44: 万元，其中：因公出国（境）经费0万元，公务接待费130万元，公务用车购置经费0万元，公务
A45: 用车运行维护费659万元

Sheet 2019年通川区平衡表（表6）
A2: 2019年通川区一般公共预算收支平衡表
D3: 单位：万元 | F3: 按照年初预算规模，下达+保留，不列赤字
A4: 收入 | C4: 支出
A5: 项目 | B5: 预算数 | C5: 项目 | D5: 预算数
A6: 本级收入合计 | B6: ='2019年通川区收入（表2）'!C31 -> 92,926 | C6: 本级支出合计 | D6: ='2019年通川区支出（表3）'!F31 -> 196,997
A7: 转移性收入 | B7: =SUM(B8,,B55,B56,B59:B60) -> 114,741 | C7: 转移性支出 | D7: =SUM(D8,D13,D55:D56,D60:D60) -> 11,114
A8: 上级补助收入 | B8: =SUM(B9,B15,B34) -> 114,741 | C8: 上解上级支出 | D8: =SUM(D9:D12) -> 11,114
A9: 返还性收入 | B9: =SUM(B10:B14) -> 9,155 | C9: 体制上解支出
A10: 增值税和消费税税收返还收入 | B10: =4967+545 -> 5,512 | C10: 出口退税专项上解支出
A11: 所得税基数返还收入 | B11: 1,742 | C11: 成品油价格和税费改革专项上解支出
A12: 成品油价格和税费改革税收返还收入 | B12: 708 | C12: 专项上解支出 | D12: 11,114
A13: 其他税收返还收入 | B13: -3,308 | C13: 补助下级支出
A14: 增值税“五五”分享 | B14: 4,501 | C14: 返还性支出
A15: 一般性转移支付收入 | B15: =SUM(B16:B33) -> 78,215 | C15: 增值税和消费税税收返还支出
A16: 体制补助收入 | C16: 所得税基数返还支出
A17: 均衡性转移支付收入 | B17: 39,845 | C17: 成品油价格和税费改革税收返还支出
A18: 县级基本财力保障机制奖补资金收入 | B18: 5,537 | C18: 其他税收返还支出
A19: 结算补助收入 | B19: 12,405 | C19: 一般性转移支付
A20: 化解债务补助收入 | C20: 体制补助支出
A21: 资源枯竭型城市转移支付补助收入 | C21: 均衡性转移支付支出
A22: 企业事业单位划转补助收入 | B22: 317 | C22: 县级基本财力保障机制奖补资金支出
A23: 成品油价格和税费改革转移支付补助收入 | B23: 56 | C23: 结算补助支出
A24: 基层公检法司转移支付收入 | B24: 800 | C24: 化解债务补助支出
A25: 城乡义务教育等转移支付收入 | B25: 6,243 | C25: 企业事业单位划转补助支出
A26: 基本养老保险转移支付收入 | B26: 2,050 | C26: 成品油价格和税费改革转移支付补助支出
A27: 城乡居民医疗等转移支付收入 | C27: 基层公检法司转移支付支出
A28: 农村综合改革转移支付收入 | B28: 877 | C28: 城乡义务教育等转移支付支出
A29: 产粮（油）大县奖励资金收入 | C29: 基本养老保险转移支付支出
A30: 重点生态功能区转移支付收入 | C30: 城乡居民医疗等转移支付支出
A31: 固定数额补助收入 | B31: 7,842 | C31: 农村综合改革转移支付支出
A32: 贫困地区转移支付收入 | B32: 2,243 | C32: 产粮（油）大县奖励资金支出
A33: 其他一般性转移支付收入 | C33: 其他一般性转移支付支出
A34: 专项转移支付收入 | B34: =SUM(B35:B54) -> 27,371 | C34: 专项转移支付支出
A35: 一般公共服务 | C35: 一般公共服务
A36: 外交 | C36: 外交
A37: 国防 | C37: 国防
A38: 公共安全 | C38: 公共安全
A39: 教育 | C39: 教育
A40: 科学技术 | C40: 科学技术
A41: 文化体育与传媒 | C41: 文化体育与传媒
A42: 社会保障和就业 | B42: ='2019年通川区支出（表3）'!G13 -> 11,639 | C42: 社会保障和就业
A43: 医疗卫生与计划生育 | B43: ='2019年通川区支出（表3）'!G14 -> 443 | C43: 医疗卫生
A44: 节能环保 | C44: 节能环保
A45: 城乡社区 | C45: 城乡社区
A46: 农林水 | B46: 4,138 | C46: 农林水
A47: 交通运输 | C47: 交通运输
A48: 资源勘探电力信息等 | C48: 资源勘探电力信息等
A49: 商业服务业等 | C49: 商业服务业等
A50: 金融 | C50: 金融
A51: 国土资源气象等 | C51: 国土海洋气象等
A52: 住房保障 | B52: 10,881 | C52: 住房保障
A53: 粮油物资储备 | B53: 270 | C53: 粮油物资储备
A54: 其他收入 | C54: 其他支出
A55: 地方政府债券收入 | C55: 调出资金
A56: 上年结余收入 | C56: 年终结余
A57: 上年结转 | C57: 结转
A58: 调入资金 | B58: 13 | C58: 净结余
A59: 调入预算稳定调节基金 | C59: 地方政府债券还本
A60: 转贷地方政府债券收入 | C60: 转贷地方政府债券支出
A61: 收入总计 | B61: =B59+B58+B34+B15+B9+B6 -> 207,680 | C61: 支出总计 | D61: =D6+D7+D13+D34+D55+D59 -> 208,111
E68: 2019年共还本3007.5万元，7830万元由专项债券，基金解决，剩余还本由借新还旧的置换债券偿还，债务股1月18日提供。

Sheet 2019年市对区税返和转移支付补助表(7)
A1: 2019年市对区税收返还和转移支付预算表
A2: 单位：万元
A3: 支出
A4: 项目 | B4: 预算数
A5: 一、对区税收返还 | B5: =SUM(B6:B10) -> 9,155
A6: 增值税和消费税税收返还支出 | B6: =4967+545 -> 5,512
A7: 所得税基数返还支出 | B7: 1,742
A8: 成品油价格和税费改革税收返还支出 | B8: 708
A9: 其他税收返还支出 | B9: -3,308
A10: 增值税五五分享税收返还支出 | B10: 4,501
A11: 二、对区转移支付补助 | B11: =B12+B33 -> 93,504
A12: （一） 一般性转移支付 | B12: =SUM(B13:B30) -> 78,215
A13: 体制补助支出
A14: 均衡性转移支付支出 | B14: 39,845
A15: 革命老区转移支付支出
A16: 县级基本财力保障机制奖补资金支出 | B16: 5,537
A17: 结算补助支出 | B17: 12,405
A18: 化解债务补助支出
A19: 资源枯竭型城市转移支付补助支出
A20: 企业事业单位划转补助支出 | B20: 317
A21: 成品油价格和税费改革转移支付补助支出 | B21: 56
A22: 基层公检法司转移支付支出 | B22: 800
A23: 城乡义务教育等转移支付支出 | B23: 6,243
A24: 基本养老保险转移支付支出 | B24: 2,050
A25: 城乡居民医疗等转移支付支出
A26: 农村综合改革转移支付支出 | B26: 877
A27: 产粮（油）大县奖励资金支出
A28: 重点生态功能区转移支付支出
A29: 固定数额补助支出 | B29: 7,842
A30: 贫困地区转移支付支出 | B30: 2,243
A31: 住房保障共同财政事权和转移支付支出
A32: 其他一般性转移支付支出
A33: （二） 专项转移支付支出 | B33: =SUM(B34:B53) -> 15,289
A34: 一般公共服务
A35: 外交
A36: 国防
A37: 公共安全
A38: 教育
A39: 科学技术
A40: 文化体育与传媒
A41: 社会保障和就业
A42: 医疗卫生与计划生育
A43: 节能环保
A44: 城乡社区
A45: 农林水 | B45: 4,138
A46: 交通运输
A47: 资源勘探电力信息等
A48: 商业服务业等
A49: 金融
A50: 国土资源气象等
A51: 住房保障 | B51: 10,881
A52: 粮油物资储备 | B52: 270
A53: 其他收入
A54: 地方政府债券收入
A55: 收入总计 | B55: =B5+B11 -> 102,659

Sheet 2019年通川区地方政府债务还款计划表（表8）
A2: 2019年达州市通川区地方政府债务还款计划表
A3: 单位：亿元
A4: 项目 | B4: 金额
A5: 一、2019年债务到期额 | B5: =SUM(B6:B7) -> 3.00075
A6: 其中：一般债券 | B6: 2.21775
A7: 专项债券 | B7: 0.783
A8: 非债券形式债务
A9: 二、2019年计划还款额 | B9: =SUM(B11,B10) -> 3.00075
A10: 其中：一般债券 | B10: 2.21775
A11: 专项债券 | B11: 0.783
A12: 非债券形式债务
A13: 说明：还款资金来源为再融资债券、项目单位自身收入等

Sheet 第二部分9
A11: 第 二 部 分
A14: 政 府 性 基 金 预 算

Sheet 2019年通川区政府性基金收入(表10）
A1: 表九
A2: 2019年通川区政府性基金预算收入表
A4: 收入
A5: 项目 | B5: 执行数
A6: 一、农网还贷资金收入
A7: 二、海南省高等级公路车辆通行附加费收入
A8: 三、港口建设费收入
A9: 四、国家电影事业发展专项资金收入
A10: 五、国有土地收益基金收入 | B10: 13,500
A11: 六、农业土地开发资金收入 | B11: 13,500
A12: 七、国有土地使用权出让收入 | B12: 222,000
A13: 八、大中型水库库区基金收入
A14: 九、彩票公益金收入
A15: 十、城市基础设施配套费收入 | B15: 1,000
A16: 十一、小型水库移民扶助基金收入
A17: 十二、国家重大水利工程建设基金收入
A18: 八、大中型水库库区基金收入
A19: 九、彩票公益金收入
A20: 十三、车辆通行费
A21: 十四、污水处理费收入
A22: 十五、彩票发行机构和彩票销售机构的业务费用
A23: 十六、其他政府性基金收入
A24: 十七、专项债券对应项目专项收入
A42: 收入合计 | B42: =SUM(B6:B41) -> 250,000
A43: 转移性收入
A44: 政府性基金转移收入
A45: 政府性基金补助收入
A46: 政府性基金上解收入
A47: 上年结余收入
A48: 调入资金
A49: 其中：地方政府性基金调入专项收入
A50: 地方政府专项债务收入
A51: 地方政府专项债券转贷收入
A52: 收入总计 | B52: 250,000

Sheet 2019年通川区政府性基金支出(表11）
A2: 2019年通川区政府性基金预算支出表
A3: 单位：万元
A4: 支出
A5: 项目 | B5: 执行数
A6: 一、文化体育与传媒支出
A7: 二、社会保障和就业支出
A8: 三、节能环保支出
A9: 可再生能源电价附加收入安排的支出
A10: 废弃电器电子产品处理基金支出
A11: 四、城乡社区支出 | B11: =SUM(B12:B17) -> 242,170
A12: 国有土地使用权出让收入及对应专项债务收入安排的支出 | B12: =221185-7830 -> 213,355
A13: 国有土地收益基金及对应专项债务收入安排的支出 | B13: 13,500
A14: 农业土地开发资金及对应专项债务收入安排的支出 | B14: 13,500
A15: 新增建设用地有偿使用费及对应专项债务收入安排的支出 | B15: 815
A16: 城市基础设施配套费及对应专项债务收入安排的支出 | B16: 1,000
A17: 污水处理费收入及对应专项债务收入安排的支出
A19: 五、农林水支出
A20: 新菜地开发建设基金及对应专项债务收入安排的支出
A21: 大中型水库库区基金及对应债务专著收入安排的支出
A22: 三峡水库库区基金支出
A23: 南水北调工程基金及对应专项债务收入安排的支出
A24: 国家重大水利工程建设基金及对应专项债务收入安排的支出
A25: 六、交通运输支出
A26: 车辆通行费及对应专项债务收入安排的支出
A27: 港口建设费及对应债务收入安排的支出
A28: 铁路建设基金支出
A29: 船舶油污损害赔偿基金支出
A30: 七、资源勘探信息等支出
A31: 散装水泥专项资金及对应专项债务收入安排的支出
A32: 新型墙体材料专项基金及对应专项债务收入安排的支出
A33: 农网还贷资金支出
A34: 八、商业服务业等支出
A35: 旅游发展基金支出
A36: 九、其他支出
A37: 其他政府性基金及对应专项债务收入安排的支出
A38: 彩票发行销售机构业务费安排的支出
A39: 彩票公益金及对应专项债务收入安排的支出
A40: 十、债务付息支出
A41: 十一、债务发行费用支出
A42: 支出合计 | B42: =B36+B30+B19+B11+B40+B41 -> 242,170
A43: 转移性支出 | B43: 7,830
A44: 政府性基金转移支付
A45: 政府性基金补助支出
A46: 政府性基金上解支出
A47: 调出资金
A48: 年终结余
A49: 地方政府专项债务还本支出 | B49: 7,830
A52: 支出总计 | B52: =B42+B49 -> 250,000

Sheet 2019年通川区政府性基金收支平衡表(表12)
A2: 2019年通川区政府性基金预算收支总表
A3: 附表-2
C4: 单位：万元
A5: 收入 | C5: 支出
A6: 项目 | B6: 执行数 | C6: 项目 | D6: 执行数
A7: 一、农网还贷资金收入 | C7: 一、文化体育与传媒支出
A8: 二、海南省高等级公路车辆通行附加费收入 | C8: 二、社会保障和就业支出
A9: 三、港口建设费收入 | C9: 三、节能环保支出
A10: 四、国家电影事业发展专项资金收入 | C10: 可再生能源电价附加收入安排的支出
A11: 五、国有土地收益基金收入 | B11: 13,500 | C11: 废弃电器电子产品处理基金支出
A12: 六、农业土地开发资金收入 | B12: 13,500 | C12: 四、城乡社区支出 | D12: =SUM(D13:D18) -> 242,170
A13: 七、国有土地使用权出让收入 | B13: 222,000 | C13: 国有土地使用权出让收入及对应专项债务收入安排的支出 | D13: =221185-7830 -> 213,355
A14: 八、大中型水库库区基金收入 | C14: 国有土地收益基金及对应专项债务收入安排的支出 | D14: 13,500
A15: 九、彩票公益金收入 | C15: 农业土地开发资金及对应专项债务收入安排的支出 | D15: 13,500
A16: 十、城市基础设施配套费收入 | B16: 1,000 | C16: 新增建设用地有偿使用费及对应专项债务收入安排的支出 | D16: 815
A17: 十一、小型水库移民扶助基金收入 | C17: 城市基础设施配套费及对应专项债务收入安排的支出 | D17: 1,000
A18: 十二、国家重大水利工程建设基金收入 | C18: 污水处理费收入及对应专项债务收入安排的支出
A19: 八、大中型水库库区基金收入
A20: 九、彩票公益金收入 | C20: 五、农林水支出
A21: 十三、车辆通行费 | C21: 新菜地开发建设基金及对应专项债务收入安排的支出
A22: 十四、污水处理费收入 | C22: 大中型水库库区基金及对应债务专著收入安排的支出
A23: 十五、彩票发行机构和彩票销售机构的业务费用 | C23: 三峡水库库区基金支出
A24: 十六、其他政府性基金收入 | C24: 南水北调工程基金及对应专项债务收入安排的支出
A25: 十七、专项债券对应项目专项收入 | C25: 国家重大水利工程建设基金及对应专项债务收入安排的支出
C26: 六、交通运输支出
C27: 车辆通行费及对应专项债务收入安排的支出
C28: 港口建设费及对应债务收入安排的支出
C29: 铁路建设基金支出
C30: 船舶油污损害赔偿基金支出
C31: 七、资源勘探信息等支出
C32: 散装水泥专项资金及对应专项债务收入安排的支出
C33: 新型墙体材料专项基金及对应专项债务收入安排的支出
C34: 农网还贷资金支出
C35: 八、商业服务业等支出
C36: 旅游发展基金支出
C37: 九、其他支出
C38: 其他政府性基金及对应专项债务收入安排的支出
C39: 彩票发行销售机构业务费安排的支出
C40: 彩票公益金及对应专项债务收入安排的支出
C41: 十、债务付息支出
C42: 十一、债务发行费用支出
A43: 收入合计 | B43: =SUM(B7:B42) -> 250,000 | C43: 支出合计 | D43: =D37+D31+D20+D12+D41+D42 -> 242,170
A44: 转移性收入 | C44: 转移性支出 | D44: 7,830
A45: 政府性基金转移收入 | C45: 政府性基金转移支付
A46: 政府性基金补助收入 | C46: 政府性基金补助支出
A47: 政府性基金上解收入 | C47: 政府性基金上解支出
A48: 上年结余收入 | C48: 调出资金
A49: 调入资金 | C49: 年终结余
A50: 其中：地方政府性基金调入专项收入 | C50: 地方政府专项债务还本支出 | D50: 7,830
A51: 地方政府专项债务收入
A52: 地方政府专项债券转贷收入
A53: 收入总计 | B53: 250,000 | C53: 支出总计 | D53: =D43+D50 -> 250,000

Sheet 2019年通川区政府性基金专移支付补助表(表13)
A1: 2019年达州市对通川区政府性基金转移支付补助情况表
B2: 单位：万元
A3: 预算科目 | B3: 实际执行数
A4: 市补助区转移支付支出 | B4: 0
A5: 国家电影事业发展专项资金
A6: 大中型水库移民后期扶持基金
A7: 小型水库移民扶助基金
A8: 国有土地使用权出让
A9: 农业土地开发资金
A10: 大中型水库库区基金
A11: 城市基础设施配套费
A12: 国家重大水利工程建设基金
A13: 港口建设费
A14: 民航发展基金
A15: 旅游发展基金收入
A16: 彩票公益金收入

Sheet 第三部门 14
A11: 第 三 部 分
A14: 国 有 资 本 经 营 预 算

Sheet 2019年通川区国资收入（表15）
A2: 2019年通川区国有资本经营收入预算表
B3: 单位：万元
A4: 项目 | B4: 预算数
A5: 一、利润收入 | B5: =SUM(B6:B36) -> 0
A6: 烟草企业利润收入
A7: 石油石化企业利润收入
A8: 电力企业利润收入
A9: 电信企业利润收入
A10: 煤炭企业利润收入
A11: 有色冶金采掘企业利润收入
A12: 钢铁企业利润收入
A13: 化工企业利润收入
A14: 运输企业利润收入
A15: 电子企业利润收入
A16: 机械企业利润收入
A17: 投资服务企业利润收入
A18: 纺织轻工企业利润收入
A19: 贸易企业利润收入
A20: 建筑施工企业利润收入
A21: 房地产企业利润收入
A22: 建材企业利润收入
A23: 境外企业利润收入
A24: 对外合作企业利润收入
A25: 医药企业利润收入
A26: 农林牧渔企业利润收入
A27: 邮政企业利润收入
A28: 军工企业利润收入
A29: 转制科研院所利润收入
A30: 地质勘查企业利润收入
A31: 卫生体育福利企业利润收入
A32: 教育文化广播企业利润收入
A33: 科学研究企业利润收入
A34: 机关社团企业利润收入
A35: 金融企业利润收入（国资预算）
A36: 其他国有资本经营预算企业利润收入
A37: 二、股利、股息收入
A38: 国有控股公司股利、股息收入
A39: 国有参股公司股利、股息收入
A40: 金融企业股利、股息收入（国资预算）
A41: 其他国有资本经营预算企业股利、股息收入
A42: 三、产权转让收入
A43: 国有股减持收入
A44: 国有股权、股份转让收入
A45: 国有独资企业产权转让收入
A46: 金融企业产权转让收入
A47: 其他国有资本经营预算企业产权转让收入
A48: 四、清算收入
A49: 国有股权、股份清算收入
A50: 国有独资企业清算收入
A51: 其他国有资本经营预算企业清算收入
A52: 五、其他收入 | B52: =SUM(B53) -> 60
A53: 其他国有资本经营预算收入 | B53: 60
A55: 国有资本经营预算收入 | B55: =B52+B48+B42+B37+B5 -> 60
A56: 国有资本经营预算转移支付收入
A57: 上年结转收入

Sheet 2019年通川区国资支出（表16）
A2: 2019年通川区国有资本经营支出预算表
B3: 单位：万元
A4: 项 目 | B4: 预算数
A5: 一、社会保障和就业支出
A6: （一）补充全国社会保障基金支出
A7: 其中：国有资本经营预算补充社保基金支出
A8: 二、国有资本经营预算支出 | B8: =B9 -> 47
A9: （一）解决历史遗留问题及改革成本支出 | B9: =SUM(B10:B18) -> 47
A10: 其中：厂办大集体改革支出
A11: “三供一业”移交补助支出
A12: 国有企业办职教幼教补助支出
A13: 国有企业办公共服务机构移交补助支出
A14: 国有企业退休人员社会化管理补助支出
A15: 国有企业棚户区改造支出
A16: 国有企业改革成本支出 | B16: 47
A17: 离休干部医药费补助支出
A18: 其他解决历史遗留问题及改革成本支出
A19: （二）国有企业资本金注入
A20: 其中：国有经济结构调整支出
A21: 公益性设施投资支出
A22: 前瞻性战略性产业发展支出
A23: 生态环境保护支出
A24: 支持科技进步支出
A25: 保障国家经济安全支出
A26: 对外投资合作支出
A27: 其他国有企业资本金注入
A28: （三）国有企业政策性补贴
A29: 其中：国有企业政策性补贴
A30: （四）金融国有资本经营预算支出
A31: 其中：资本性支出
A32: 改革性支出
A33: 其他金融国有资本经营预算支出
A34: （五）其他国有资本经营预算支出
A35: 其中：其他国有资本经营预算支出
A36: 煤炭行业化解过剩产能支出
A37: 三、转移性支出 | B37: =B38 -> 13
A38: （一）调出资金 | B38: =B39 -> 13
A39: 其中：国有资本经营预算调出资金 | B39: 13
A41: 国有资本经营预算支出 | B41: =B39+B9 -> 60
A42: 结转下年支出

Sheet 2019年通川区国资预算收支平衡表(表17)
A2: 2019年通川区国有资本经营收支预算平衡表
B3: 单位：万元
A4: 项目 | B4: 预算数 | C4: 项 目 | D4: 预算数
A5: 一、利润收入 | B5: =SUM(B6:B36) -> 0 | C5: 一、社会保障和就业支出
A6: 烟草企业利润收入 | C6: （一）补充全国社会保障基金支出
A7: 石油石化企业利润收入 | C7: 其中：国有资本经营预算补充社保基金支出
A8: 电力企业利润收入 | C8: 二、国有资本经营预算支出 | D8: =D9 -> 47
A9: 电信企业利润收入 | C9: （一）解决历史遗留问题及改革成本支出 | D9: =SUM(D10:D18) -> 47
A10: 煤炭企业利润收入 | C10: 其中：厂办大集体改革支出
A11: 有色冶金采掘企业利润收入 | C11: “三供一业”移交补助支出
A12: 钢铁企业利润收入 | C12: 国有企业办职教幼教补助支出
A13: 化工企业利润收入 | C13: 国有企业办公共服务机构移交补助支出
A14: 运输企业利润收入 | C14: 国有企业退休人员社会化管理补助支出
A15: 电子企业利润收入 | C15: 国有企业棚户区改造支出
A16: 机械企业利润收入 | C16: 国有企业改革成本支出 | D16: 47
A17: 投资服务企业利润收入 | C17: 离休干部医药费补助支出
A18: 纺织轻工企业利润收入 | C18: 其他解决历史遗留问题及改革成本支出
A19: 贸易企业利润收入 | C19: （二）国有企业资本金注入
A20: 建筑施工企业利润收入 | C20: 其中：国有经济结构调整支出
A21: 房地产企业利润收入 | C21: 公益性设施投资支出
A22: 建材企业利润收入 | C22: 前瞻性战略性产业发展支出
A23: 境外企业利润收入 | C23: 生态环境保护支出
A24: 对外合作企业利润收入 | C24: 支持科技进步支出
A25: 医药企业利润收入 | C25: 保障国家经济安全支出
A26: 农林牧渔企业利润收入 | C26: 对外投资合作支出
A27: 邮政企业利润收入 | C27: 其他国有企业资本金注入
A28: 军工企业利润收入 | C28: （三）国有企业政策性补贴
A29: 转制科研院所利润收入 | C29: 其中：国有企业政策性补贴
A30: 地质勘查企业利润收入 | C30: （四）金融国有资本经营预算支出
A31: 卫生体育福利企业利润收入 | C31: 其中：资本性支出
A32: 教育文化广播企业利润收入 | C32: 改革性支出
A33: 科学研究企业利润收入 | C33: 其他金融国有资本经营预算支出
A34: 机关社团企业利润收入 | C34: （五）其他国有资本经营预算支出
A35: 金融企业利润收入（国资预算） | C35: 其中：其他国有资本经营预算支出
A36: 其他国有资本经营预算企业利润收入 | C36: 煤炭行业化解过剩产能支出
A37: 二、股利、股息收入 | C37: 三、转移性支出 | D37: =D38 -> 13
A38: 国有控股公司股利、股息收入 | C38: （一）调出资金 | D38: =D39 -> 13
A39: 国有参股公司股利、股息收入 | C39: 其中：国有资本经营预算调出资金 | D39: 13
A40: 金融企业股利、股息收入（国资预算）
A41: 其他国有资本经营预算企业股利、股息收入
A42: 三、产权转让收入
A43: 国有股减持收入
A44: 国有股权、股份转让收入
A45: 国有独资企业产权转让收入
A46: 金融企业产权转让收入
A47: 其他国有资本经营预算企业产权转让收入
A48: 四、清算收入
A49: 国有股权、股份清算收入
A50: 国有独资企业清算收入
A51: 其他国有资本经营预算企业清算收入
A52: 五、其他收入 | B52: =SUM(B53) -> 60
A53: 其他国有资本经营预算收入 | B53: 60
A55: 国有资本经营预算收入 | B55: =B52+B48+B42+B37+B5 -> 60 | C55: 国有资本经营预算支出 | D55: =D39+D9 -> 60
A56: 国有资本经营预算转移支付收入
A57: 上年结转收入 | C57: 结转下年支出

Sheet 第四部分18
A11: 第 四 部 分
A14: 社 会 保 险 基 金 预 算

Sheet 2019通川区社保收入（表19）
A2: 2019年通川区社会保险基金收入预算表
C3: 单位：万元
A4: 项 目 | B4: 预算基数 | C4: 预算数
A5: 社会保险基金收入合计 | B5: =#REF!+B9+B14+B18+B22 ->  | C5: =C6 -> 8,395
A6: 一、城乡居民基本养老保险基金收入 | B6: =SUM(B7:B11) -> 6859 | C6: =SUM(C7:C11) -> 8,395
A7: 其中：个人缴费收入 | B7: 1366 | C7: 1,534
A8: 财政补贴收入 | B8: 5211 | C8: 6,444
A9: 利息收入 | B9: 150 | C9: 221
A10: 转移收入 | B10: 11 | C10: 18
A11: 其他收入 | B11: 121 | C11: 178
B13: ='[1]40YS全市社保基金收入'!B13 -> 2,327
B14: ='[1]40YS全市社保基金收入'!B14 -> 19,190
B15: ='[1]40YS全市社保基金收入'!B15 -> 18,472
B16: ='[1]40YS全市社保基金收入'!B16 -> 400
B17: ='[1]40YS全市社保基金收入'!B17 -> 318
B18: ='[1]40YS全市社保基金收入'!B18 -> 2,877
B19: ='[1]40YS全市社保基金收入'!B19 -> 2,826
B20: ='[1]40YS全市社保基金收入'!B20 -> 0
B21: ='[1]40YS全市社保基金收入'!B21 -> 51
B22: ='[1]40YS全市社保基金收入'!B22 -> 369,482
B23: ='[1]40YS全市社保基金收入'!B23 -> 94,066
B24: ='[1]40YS全市社保基金收入'!B24 -> 273,498
B25: ='[1]40YS全市社保基金收入'!B25 -> 1,918

Sheet 2019通川区社保支出（表20）
A2: 2019年通川区社会保险基金支出预算表
C3: 单位：万元 | D3: 单位：万元
A4: 项 目 | B4: 预算基数 | C4: 预算数 | D4: 增长%
A5: 社会保险基金支出合计 | B5: =B6+B14+B18+B21+B24 -> 531,192 | C5: =C6+C14+C18+C21+C24 -> 6,768 | D5: =IF(B5>0,C5/B5-1,0) -> -98.7%
A6: 一、城乡居民保险基金支出 | B6: ='[1]41YS全市社保基金支出'!B6 -> 11,066 | C6: =SUM(C7:C11) -> 6,768 | D6: =IF(B6>0,C6/B6-1,0) -> -38.8%
A7: 其中：基础养老金支出 | B7: ='[1]41YS全市社保基金支出'!B7 -> 8,525 | C7: 5,808 | D7: -31.9%
A8: 个人账户养老金支出 | B8: ='[1]41YS全市社保基金支出'!B8 -> 813 | C8: 836 | D8: 2.8%
A9: 丧葬抚恤补助支出 | B9: ='[1]41YS全市社保基金支出'!B9 -> 4 | C9: 121 | D9: 2925.0%
A10: 其他支出 | B10: ='[1]41YS全市社保基金支出'!B10 -> 82 | D10: -100.0%
A11: 转移支出 | B11: ='[1]41YS全市社保基金支出'!B11 -> 1,100 | C11: 3 | D11: -99.7%
B12: ='[1]41YS全市社保基金支出'!B12 -> 11
B13: ='[1]41YS全市社保基金支出'!B13 -> 542 | D13: -100.0%
B14: ='[1]41YS全市社保基金支出'!B14 -> 110,756 | D14: -100.0%
B15: ='[1]41YS全市社保基金支出'!B15 -> 57,826 | D15: -100.0%
B16: ='[1]41YS全市社保基金支出'!B16 -> 52,441 | D16: -100.0%
B17: ='[1]41YS全市社保基金支出'!B17 -> 489 | D17: -100.0%
B18: ='[1]41YS全市社保基金支出'!B18 -> 18,517 | D18: -100.0%
B19: ='[1]41YS全市社保基金支出'!B19 -> 18,043 | D19: -100.0%
B20: ='[1]41YS全市社保基金支出'!B20 -> 474 | D20: -100.0%
B21: ='[1]41YS全市社保基金支出'!B21 -> 4,224 | D21: -100.0%
B22: ='[1]41YS全市社保基金支出'!B22 -> 4,224 | D22: -100.0%
B23: ='[1]41YS全市社保基金支出'!B23 -> 0 | D23: 0.0%
B24: ='[1]41YS全市社保基金支出'!B24 -> 386,629 | D24: -100.0%
B25: ='[1]41YS全市社保基金支出'!B25 -> 371,892 | D25: -100.0%
B26: ='[1]41YS全市社保基金支出'!B26 -> 14,737 | D26: -100.0%
B27: ='[1]41YS全市社保基金支出'!B27 -> 0 | D27: 0.0%

Sheet 2019通川区社保结余（表21）
A2: 2019年通川区社会保险基金结余预算表
C3: 单位：万元
A4: 项 目 | B4: 预算基数 | C4: 预算数 | D4: 增长%
A5: 社会保险基金本年末滚存结余 | C5: =C6+C7 -> 15,080
A6: 社会保险基金本年收支结余 | B6: =B8+B10+B12+B14+B16 -> -23,069 | C6: =C8 -> 1,627
A7: 社会保险基金上年末滚存结余 | B7: =B9+B11+B13+B15+B17 -> 191,669 | C7: 13,453 | D7: =IF(B7<>0,C7/B7-1,0) -> -93.0%
A8: 一、城乡居民保险基金本年收支结余 | B8: ='[1]42YS全市社保基金结余'!B7 -> 328 | C8: =8395-6768 -> 1,627 | D8: 396.0%
A9: 城乡居民保险基金年末滚存结余 | B9: ='[1]42YS全市社保基金结余'!B8 -> 40,654 | C9: 15,080 | D9: -62.9%
B10: ='[1]42YS全市社保基金结余'!B9 -> -5,576
B11: ='[1]42YS全市社保基金结余'!B10 -> 76,613 | D11: -100.0%
B12: ='[1]42YS全市社保基金结余'!B11 -> 673
B13: ='[1]42YS全市社保基金结余'!B12 -> 8,202 | D13: -100.0%
B14: ='[1]42YS全市社保基金结余'!B13 -> -1,347 | D14: -100.0%
B15: ='[1]42YS全市社保基金结余'!B14 -> 3,920 | D15: -100.0%
B16: ='[1]42YS全市社保基金结余'!B15 -> -17,147
B17: ='[1]42YS全市社保基金结余'!B16 -> 62,280 | D17: -100.0%
